bitfinex/quotes_ETHUSD_20241231
["timestamp","ask_amount","ask_price","bid_price","bid_amount"]
[1735647671259,32.20469704,3404.3,3404.2,13.17342139]
[1735647671568,32.20469704,3404.3,3404.2,12.15216139]
[1735647671742,35.53469704,3404.3,3404.2,14.77548012]
[1735647672363,35.53469704,3404.3,3404.2,15.32548012]
[1735647673766,35.53469704,3404.3,3404.2,10.86700064]
[1735647674129,38.86469704,3404.3,3404.2,10.86700064]
[1735647674834,38.86469704,3404.3,3404.2,13.92560189]
[1735647676403,42.19469704,3404.3,3404.2,13.92560189]
[1735647678869,45.52469704,3404.3,3404.2,13.92560189]
[1735647679449,45.52469704,3404.3,3404.2,10.86700064]
[1735647680186,47.23946835,3404.3,3404.2,10.86700064]
[1735647680382,47.23946835,3404.3,3404.2,6.88826064]
[1735647680700,47.23946835,3404.3,3404.2,6.2809175]
[1735647680866,47.23946835,3404.3,3404.2,2.7309175]
[1735647681417,53.50692835,3404.3,3404.2,1.0643175]
[1735647681560,2.93772,3404.0,3403.9,3.6703215]
[1735647681899,7.49431957,3404.0,3403.9,3.6703215]
[1735647682774,7.49431957,3404.0,3403.9,1.22772509]
[1735647683824,10.82431957,3404.0,3403.9,1.22772509]
[1735647684462,1.5603,3403.7,3403.2,1.22772509]
[1735647684663,1.5603,3403.5,3403.2,1.22772509]
[1735647685087,1.5603,3403.5,3403.3,0.02888347]
[1735647685399,1.5603,3403.5,3403.2,1.22772509]
[1735647685597,1.6403,3403.5,3403.3,0.02888347]
[1735647686098,1.6403,3403.5,3403.4,0.02888347]
[1735647686299,4.9703,3403.5,3403.4,0.02888347]
[1735647686458,4.9703,3403.5,3403.2,0.55]
[1735647686664,4.9703,3403.5,3403.3,2.04772347]
[1735647686889,4.9703,3403.5,3403.4,2.41687]
[1735647687089,4.9703,3403.5,3403.4,2.96687]
[1735647687464,4.9703,3403.5,3403.4,3.99221347]
[1735647687776,4.9703,3403.5,3403.4,3.24333347]
[1735647688690,8.3003,3403.5,3403.4,3.24333347]
[1735647689199,8.3003,3403.5,3403.4,0.57888347]
[1735647689573,8.3003,3403.5,3403.4,5.57888347]
[1735647689978,6.74,3403.5,3403.4,5.57888347]
[1735647690185,6.74,3403.5,3403.4,3.99252347]
[1735647690398,6.74,3403.5,3403.4,5.08076347]
[1735647690700,6.74,3403.5,3403.4,4.32641347]
[1735647691202,10.07,3403.5,3403.4,4.32641347]
[1735647691933,10.07,3403.5,3403.4,4.12105347]
[1735647692491,10.07,3403.5,3403.4,2.91923347]
[1735647693094,10.07,3403.5,3403.4,0.57888347]
[1735647693519,13.4,3403.5,3403.4,5.17313347]
[1735647693824,13.4,3403.5,3403.4,5.30774347]
[1735647694020,13.4,3403.5,3403.4,5.52644344]
[1735647694198,13.4,3403.5,3403.4,0.79758344]
[1735647695091,13.4,3403.5,3403.4,2.97235344]
[1735647695277,13.4,3403.5,3403.4,2.95381344]
[1735647695826,16.73,3403.5,3403.4,2.95381344]
[1735647698227,20.06,3403.5,3403.4,2.95381344]
[1735647700829,23.39,3403.5,3403.4,2.95381344]
[1735647704031,26.72,3403.5,3403.4,2.95381344]
[1735647705872,26.72,3403.5,3403.4,0.79758344]
[1735647706428,30.05,3403.5,3403.4,0.79758344]
[1735647706653,30.05,3403.5,3403.4,3.27808342]
[1735647707994,30.05,3403.5,3403.4,1.78978343]
[1735647708194,30.05,3403.5,3403.4,6.78978343]
[1735647709056,33.38,3403.5,3403.4,6.78978343]
[1735647709470,33.38,3403.5,3403.4,3.27808342]
[1735647710997,33.38,3403.5,3403.4,1.78978343]
[1735647711391,36.71,3403.5,3403.4,1.78978343]
[1735647713894,36.71,3403.5,3403.4,1.23978343]
[1735647714105,40.04,3403.5,3403.4,1.23978343]
[1735647715284,40.04,3403.5,3403.4,6.47378343]
[1735647715497,40.04,3403.5,3403.4,5.21415343]
[1735647715798,40.04,3403.5,3403.4,6.44140381]
[1735647716570,43.37,3403.5,3403.4,6.44140381]
[1735647716981,43.37,3403.5,3403.4,8.54404105]
[1735647718188,43.37,3403.5,3403.4,5.11967105]
[1735647718366,43.37,3403.5,3403.4,7.14326105]
[1735647718561,43.37,3403.5,3403.4,7.7571236]
[1735647718758,43.37,3403.5,3403.4,9.2893236]
[1735647718959,46.7,3403.5,3403.4,9.2893236]
[1735647719160,46.7,3403.5,3403.4,5.7335336]
[1735647719390,46.7,3403.5,3403.4,9.4474336]
[1735647719993,46.7,3403.5,3403.4,6.99198342]
[1735647721413,50.03,3403.5,3403.4,14.53172615]
[1735647722830,50.03,3403.5,3403.4,11.59349615]
[1735647723036,50.03,3403.5,3403.4,10.50768424]
[1735647723394,46.75824004,3403.5,3403.4,10.50768424]
[1735647723913,50.08824004,3403.5,3403.4,10.50768424]
[1735647724124,50.08824004,3403.5,3403.4,13.44591424]
[1735647726949,50.08824004,3403.5,3403.4,10.50768424]
[1735647727152,53.41824004,3403.5,3403.4,10.50768424]
[1735647728248,53.41824004,3403.5,3403.4,13.44591424]
[1735647729167,53.41824004,3403.5,3403.4,16.44591424]
[1735647729373,53.41824004,3403.5,3403.4,19.28101107]
[1735647729671,56.74824004,3403.5,3403.4,19.28101107]
[1735647731172,56.74824004,3403.5,3403.4,21.05001107]
[1735647731334,32.77639332,3403.5,3403.4,22.23429777]
[1735647731730,32.77639332,3403.5,3403.4,21.83775976]
[1735647732031,28.99896358,3403.5,3403.4,21.83775976]
[1735647732345,27.52988358,3403.5,3403.4,21.83775976]
[1735647733133,27.52988358,3403.5,3403.4,24.35617035]
[1735647733328,23.16874177,3403.5,3403.4,24.35617035]
[1735647733567,22.07982177,3403.5,3403.4,24.35617035]
[1735647733941,22.07982177,3403.5,3403.4,23.90740678]
[1735647734141,22.07982177,3403.5,3403.4,21.38899619]
[1735647734373,25.40982177,3403.5,3403.4,27.47096622]
[1735647734743,25.40982177,3403.5,3403.4,25.3629811]
[1735647735632,25.40982177,3403.5,3403.4,21.04801107]
[1735647736789,28.73982177,3403.5,3403.4,21.04801107]
[1735647737189,28.73982177,3403.5,3403.4,26.11317599]
[1735647737519,21.39442177,3403.5,3403.4,26.11317599]
[1735647737714,6.89236461,3403.5,3403.4,26.56193956]
[1735647737890,5.53172539,3403.5,3403.4,26.56193956]
[1735647738490,4.3557254,3403.5,3403.4,26.56193956]
[1735647738822,3.33,3404.0,3403.9,9.8038]
[1735647738992,0.05927712,3404.0,3403.9,17.63889683]
[1735647739318,42.84821704,3404.3,3404.2,9.80354]
[1735647739622,41.23821704,3404.3,3404.2,20.47373366]
[1735647739938,41.23821704,3404.3,3404.2,17.88491708]
[1735647740144,40.06821704,3404.3,3404.2,17.88491708]
[1735647740989,40.06821704,3404.3,3404.2,16.11791708]
[1735647741393,40.06821704,3404.3,3404.2,20.58191788]
[1735647741608,43.39821704,3404.3,3404.2,20.58191788]
[1735647743532,37.52329704,3404.3,3404.2,20.58191788]
[1735647743696,36.05456704,3404.3,3404.2,20.58191788]
[1735647743897,31.69440204,3404.3,3404.2,20.58191788]
[1735647744098,35.02440204,3404.3,3404.2,20.58191788]
[1735647744293,35.02440204,3404.3,3404.2,17.58191788]
[1735647744520,35.02440204,3404.3,3404.2,17.5543376]
[1735647744722,35.02440204,3404.3,3404.2,20.5543376]
[1735647745834,34.96231892,3404.3,3404.2,20.5543376]
[1735647746199,34.96231892,3404.3,3404.2,21.14087133]
[1735647746401,34.96231892,3404.3,3404.2,25.41253695]
[1735647746729,38.29231892,3404.3,3404.2,25.41253695]
[1735647748023,38.29231892,3404.3,3404.2,21.14087133]
[1735647748351,32.84190612,3404.3,3404.2,21.14087133]
[1735647749160,36.17190612,3404.3,3404.2,21.14087133]
[1735647751727,39.50190612,3404.3,3404.2,21.14087133]
[1735647753716,39.50190612,3404.3,3404.2,24.80168399]
[1735647753923,38.47144248,3404.3,3404.2,24.80168399]
[1735647755034,38.47144248,3404.3,3404.2,21.14087133]
[1735647755371,33.02100205,3404.3,3404.2,21.14087133]
[1735647756586,33.08082469,3404.3,3404.2,21.14087133]
[1735647757300,33.08082469,3404.3,3404.2,20.14867134]
[1735647758751,36.41082469,3404.3,3404.2,20.14867134]
[1735647760615,33.47336469,3404.3,3404.2,20.14867134]
[1735647760749,32.00463469,3404.3,3404.2,20.14867134]
[1735647760954,27.41206666,3404.3,3404.2,20.14867134]
[1735647761179,30.74206666,3404.3,3404.2,23.09097434]
[1735647761368,27.80460666,3404.3,3404.2,23.09097434]
[1735647761618,23.39841666,3404.3,3404.2,23.09097434]
[1735647762315,23.39841666,3404.3,3404.2,22.87227437]
[1735647762474,23.39841666,3404.3,3404.2,23.09115131]
[1735647762856,23.39841666,3404.3,3404.2,27.36281693]
[1735647763249,17.94844693,3404.3,3404.2,27.36281693]
[1735647764109,21.27844693,3404.3,3404.2,27.36281693]
[1735647764275,21.27844693,3404.3,3404.2,23.09115131]
[1735647764611,16.91842927,3404.3,3404.2,23.09115131]
[1735647765188,16.91842927,3404.3,3404.2,21.60285132]
[1735647765552,16.91842927,3404.3,3404.2,19.83585132]
[1735647766618,20.24842927,3404.3,3404.2,19.83585132]
[1735647767997,20.24842927,3404.3,3404.2,17.73685132]
[1735647768637,20.24842927,3404.3,3404.2,18.28685132]
[1735647768839,23.57842927,3404.3,3404.2,18.28685132]
[1735647771367,26.90842927,3404.3,3404.2,18.28685132]
[1735647771861,25.25313169,3404.3,3404.2,18.28685132]
[1735647772364,25.25313169,3404.3,3404.2,22.56588886]
[1735647773760,28.58313169,3404.3,3404.2,22.56588886]
[1735647775169,28.58313169,3404.3,3404.2,18.28685132]
[1735647775503,9.86404566,3404.3,3404.2,22.5008829]
[1735647776011,9.86404566,3404.3,3404.2,22.10468822]
[1735647776160,13.19404566,3404.3,3404.2,22.10468822]
[1735647776706,11.72531566,3404.3,3404.2,22.10468822]
[1735647776877,3.33812121,3404.3,3404.2,22.10468822]
[1735647777075,49.70003303,3404.6,3404.5,2.93728]
[1735647777286,49.70003303,3404.6,3404.5,11.48728]
[1735647777583,49.70003303,3404.6,3404.5,14.32237683]
[1735647778704,53.03003303,3404.6,3404.5,14.32237683]
[1735647779098,52.87674785,3404.6,3404.5,14.32237683]
[1735647780075,52.28674785,3404.6,3404.5,14.32237683]
[1735647780980,52.28674785,3404.6,3404.5,16.07268025]
[1735647781288,55.61674785,3404.6,3404.5,16.07268025]
[1735647781504,55.61674785,3404.6,3404.5,17.83968025]
[1735647782013,53.96168418,3404.6,3404.5,17.83968025]
[1735647783063,55.55588418,3404.6,3404.5,15.52268025]
[1735647783762,58.88588418,3404.6,3404.5,16.07268025]
[1735647785010,58.88588418,3404.6,3404.5,16.65688603]
[1735647785302,57.29168418,3404.6,3404.5,16.65688603]
[1735647786019,57.29168418,3404.6,3404.5,21.74052312]
[1735647786170,60.62168418,3404.6,3404.5,21.74052312]
[1735647786503,56.26136962,3404.6,3404.5,21.74052312]
[1735647787066,56.26136962,3404.6,3404.5,16.65688603]
[1735647788983,59.59136962,3404.6,3404.5,14.90658261]
[1735647790716,28.67740003,3404.6,3404.5,16.88518019]
[1735647790911,25.07177037,3404.6,3404.5,61.23808198]
[1735647791212,13.50172162,3404.6,3404.5,61.23808198]
[1735647791399,2.60023035,3405.0,3404.9,4.70394]
[1735647791609,0.86121035,3405.0,3404.9,13.47812021]
[1735647791769,0.86121035,3405.0,3404.9,18.88730711]
[1735647792322,1.5624,3406.4,3405.1,1.767]
[1735647792483,1.03091,3405.7,3405.6,12.66333683]
[1735647792695,1.03091,3405.7,3405.6,15.71056683]
[1735647793103,4.42194404,3405.8,3405.7,6.48625]
[1735647793305,4.42194404,3405.8,3405.7,9.53348]
[1735647793823,7.75194404,3405.8,3405.7,9.53348]
[1735647795292,7.75194404,3405.8,3405.7,19.70803775]
[1735647796184,11.08194404,3405.8,3405.7,19.70803775]
[1735647796934,1.7329566,3406.6,3405.7,14.54029829]
[1735647797129,15.81581837,3405.9,3405.8,11.30039]
[1735647797289,15.81581837,3405.9,3405.8,12.87529]
[1735647797623,14.34777837,3405.9,3405.8,12.87529]
[1735647797812,8.47561837,3405.9,3405.8,13.22819179]
[1735647798194,6.21487431,3405.9,3405.8,25.48914549]
[1735647798384,1.63e-06,3405.9,3405.8,22.65404866]
[1735647798580,0.1705566,3406.6,3406.0,1.5764]
[1735647798779,0.1705566,3406.6,3406.5,9.32065683]
[1735647798994,0.00293,3408.3,3408.0,1.3143434]
[1735647799199,0.296608,3408.3,3408.0,1.3143434]
[1735647800129,0.296608,3408.3,3407.9,1.3143434]
[1735647801086,3.626608,3408.3,3407.9,1.3143434]
[1735647801287,3.626608,3408.3,3408.0,1.3143434]
[1735647802131,1.6291,3408.2,3408.0,1.3143434]
[1735647802340,0.60085911,3408.2,3408.0,1.3143434]
[1735647802509,1.6291,3408.1,3408.0,1.3143434]
[1735647802832,1.6291,3408.1,3407.9,1.3143434]
[1735647803540,1.6291,3408.0,3407.7,1.3143434]
[1735647803691,1.6291,3408.0,3407.5,4.3143434]
[1735647803692,1.6291,3407.9,3407.5,4.3143434]
[1735647804036,2.93451,3407.8,3407.6,1.3143434]
[1735647804238,1.6291,3407.7,3407.5,1.3143434]
[1735647805700,1.6291,3407.6,3407.5,1.3143434]
[1735647807645,6.26453,3407.7,3407.3,1.174699]
[1735647807850,7.01218947,3407.7,3407.3,1.174699]
[1735647808345,10.34218947,3407.7,3407.3,1.174699]
[1735647808538,7.40765947,3407.7,3407.3,1.174699]
[1735647809647,7.40765947,3407.7,3407.4,5.0]
[1735647810743,1.6291,3407.6,3407.4,4.79829]
[1735647810944,1.6291,3407.6,3407.5,5.0]
[1735647811142,1.6291,3407.6,3407.4,5.0]
[1735647812637,1.6291,3407.6,3407.5,3.0]
[1735647812951,1.6291,3407.6,3407.5,8.0]
[1735647813330,4.9591,3407.6,3407.5,8.0]
[1735647813637,3.33,3407.6,3407.5,8.0]
[1735647813818,3.33,3407.6,3407.5,15.84179683]
[1735647814849,3.28,3407.6,3407.5,15.84179683]
[1735647815233,3.28,3407.6,3407.5,17.60879683]
[1735647815745,8.91375573,3407.7,3407.6,5.93461]
[1735647815951,8.91375573,3407.7,3407.6,8.0]
[1735647816655,8.91375573,3407.7,3407.6,13.00661]
[1735647816835,8.91375573,3407.7,3407.6,10.072]
[1735647817022,5.64652248,3407.7,3407.6,10.072]
[1735647817546,5.64652248,3407.7,3407.6,14.44786293]
[1735647818414,8.97652248,3407.7,3407.6,12.37586293]
[1735647819208,8.97652248,3407.7,3407.6,13.22883009]
[1735647820953,12.30652248,3407.7,3407.6,13.80315739]
[1735647821157,12.30652248,3407.7,3407.6,14.35315739]
[1735647822416,12.30652248,3407.7,3407.6,17.28776739]
[1735647822612,12.30652248,3407.7,3407.6,14.35315739]
[1735647823326,15.63652248,3407.7,3407.6,14.35315739]
[1735647824125,15.63652248,3407.7,3407.6,13.80315739]
[1735647825956,15.63652248,3407.7,3407.6,10.58294828]
[1735647826255,18.96652248,3407.7,3407.6,10.58294828]
[1735647826452,18.96652248,3407.7,3407.6,10.03294828]
[1735647827568,18.96652248,3407.7,3407.6,11.85832942]
[1735647827770,14.61008182,3407.7,3407.6,11.85832942]
[1735647828827,14.61008182,3407.7,3407.6,10.03294828]
[1735647829173,17.94008182,3407.7,3407.6,10.03294828]
[1735647831277,17.94008182,3407.7,3407.6,14.56235828]
[1735647831432,21.27008182,3407.7,3407.6,14.56235828]
[1735647832046,21.27008182,3407.7,3407.6,18.83510608]
[1735647832287,18.00272815,3407.7,3407.6,18.83510608]
[1735647832484,18.00272815,3407.7,3407.6,15.90049608]
[1735647832661,18.00272815,3407.7,3407.6,14.30569608]
[1735647833344,18.00272815,3407.7,3407.6,11.87165834]
[1735647833890,21.33272815,3407.7,3407.6,11.87165834]
[1735647834384,25.02750097,3407.7,3407.6,8.29733104]
[1735647834622,22.89422815,3407.7,3407.6,8.29733104]
[1735647834806,22.89422815,3407.7,3407.6,6.83871006]
[1735647835202,22.89422815,3407.7,3407.6,9.83871006]
[1735647835513,22.89422815,3407.7,3407.6,12.67380689]
[1735647836312,26.22422815,3407.7,3407.6,12.05622822]
[1735647836522,24.66272815,3407.7,3407.6,12.05622822]
[1735647837112,26.22422815,3407.7,3407.6,6.22113139]
[1735647837335,26.22422815,3407.7,3407.6,9.49793363]
[1735647838553,26.22422815,3407.7,3407.6,4.60575]
[1735647838764,29.55422815,3407.7,3407.6,6.03013737]
[1735647839239,27.99272815,3407.7,3407.6,9.03013737]
[1735647839839,27.99272815,3407.7,3407.6,11.47644655]
[1735647840756,29.55422815,3407.7,3407.6,8.47644655]
[1735647841159,32.88422815,3407.7,3407.6,8.47644655]
[1735647841486,32.88422815,3407.7,3407.6,6.19046544]
[1735647842013,31.32272815,3407.7,3407.6,8.96944544]
[1735647842827,31.32272815,3407.7,3407.6,7.54505807]
[1735647843620,34.65272815,3407.7,3407.6,7.54505807]
[1735647844263,34.65272815,3407.7,3407.6,11.3581555]
[1735647845039,34.65272815,3407.7,3407.6,15.8875655]
[1735647845632,34.65272815,3407.7,3407.6,14.04885544]
[1735647845824,34.65272815,3407.7,3407.6,16.88395227]
[1735647846025,37.98272815,3407.7,3407.6,16.88395227]
[1735647846840,37.98272815,3407.7,3407.6,14.04885544]
[1735647847051,37.98272815,3407.7,3407.6,15.8875655]
[1735647847242,33.62637401,3407.7,3407.6,15.8875655]
[1735647847842,33.62637401,3407.7,3407.6,18.72266233]
[1735647848166,33.62637401,3407.7,3407.6,23.77234425]
[1735647848350,31.51099539,3407.7,3407.6,23.77234425]
[1735647849451,31.51099539,3407.7,3407.6,18.72266233]
[1735647849659,28.24378232,3407.7,3407.6,18.72266233]
[1735647850327,28.24378232,3407.7,3407.6,15.8875655]
[1735647850728,31.57378232,3407.7,3407.6,15.8875655]
[1735647851771,31.57378232,3407.7,3407.6,12.9529555]
[1735647852167,31.57378232,3407.7,3407.6,10.37341743]
[1735647853128,34.90378232,3407.7,3407.6,10.37341743]
[1735647853475,34.90378232,3407.7,3407.6,14.65258354]
[1735647855541,38.23378232,3407.7,3407.6,14.65258354]
[1735647856131,38.23378232,3407.7,3407.6,10.37341743]
[1735647857981,41.56378232,3407.7,3407.6,10.37341743]
[1735647858275,37.20742343,3407.7,3407.6,10.37341743]
[1735647860378,40.53742343,3407.7,3407.6,13.30802743]
[1735647861636,40.53742343,3407.7,3407.6,10.37341743]
[1735647862739,43.86742343,3407.7,3407.6,10.37341743]
[1735647865139,47.19742343,3407.7,3407.6,13.30802743]
[1735647865342,43.93008202,3407.7,3407.6,13.30802743]
[1735647867577,43.93008202,3407.7,3407.6,11.88364006]
[1735647867882,47.26008202,3407.7,3407.6,11.88364006]
[1735647869258,42.90371663,3407.7,3407.6,11.88364006]
[1735647869988,42.90371663,3407.7,3407.6,18.30999191]
[1735647870189,46.23371663,3407.7,3407.6,18.30999191]
[1735647871198,46.23371663,3407.7,3407.6,11.88364006]
[1735647872597,49.56371663,3407.7,3407.6,10.04493]
[1735647872801,47.9100147,3407.7,3407.6,10.04493]
[1735647873953,47.9100147,3407.7,3407.6,7.11032]
[1735647874151,47.9100147,3407.7,3407.6,9.94541683]
[1735647875053,51.2400147,3407.7,3407.6,9.94541683]
[1735647877083,51.2400147,3407.7,3407.6,12.88002683]
[1735647877654,54.5700147,3407.7,3407.6,12.88002683]
[1735647877858,54.5700147,3407.7,3407.6,14.66561153]
[1735647880656,57.9000147,3407.7,3407.6,14.66561153]
[1735647880856,57.9000147,3407.7,3407.6,16.05790332]
[1735647881156,53.54357775,3407.7,3407.6,16.05790332]
[1735647882371,50.27625123,3407.7,3407.6,16.05790332]
[1735647883106,53.60625123,3407.7,3407.6,14.66561153]
[1735647885402,56.93625123,3407.7,3407.6,14.66561153]
[1735647887776,60.26625123,3407.7,3407.6,14.66561153]
[1735647889123,60.26625123,3407.7,3407.6,19.72738302]
[1735647890227,63.59625123,3407.7,3407.6,19.72738302]
[1735647890440,63.59625123,3407.7,3407.6,18.13409326]
[1735647890825,63.59625123,3407.7,3407.6,19.37590033]
[1735647892044,63.59625123,3407.7,3407.6,14.31412884]
[1735647892255,59.23988873,3407.7,3407.6,14.31412884]
[1735647892600,62.56988873,3407.7,3407.6,14.31412884]
[1735647892804,60.91614124,3407.7,3407.6,14.31412884]
[1735647894139,60.91614124,3407.7,3407.6,17.60215164]
[1735647895135,64.24614124,3407.7,3407.6,17.60215164]
[1735647896632,64.24614124,3407.7,3407.6,14.30238424]
[1735647896835,64.24614124,3407.7,3407.6,11.8187701]
[1735647897126,64.24614124,3407.7,3407.6,14.30238424]
[1735647897537,67.57614124,3407.7,3407.6,14.30238424]
[1735647900149,70.90614124,3407.7,3407.6,14.30238424]
[1735647902385,66.5498647,3407.7,3407.6,14.30238424]
[1735647902534,69.8798647,3407.7,3407.6,14.30238424]
[1735647902734,69.8798647,3407.7,3407.6,11.8187701]
[1735647902936,69.8798647,3407.7,3407.6,14.30238424]
[1735647905071,73.2098647,3407.7,3407.6,12.52854414]
[1735647905276,71.5562195,3407.7,3407.6,12.52854414]
[1735647905595,71.5562195,3407.7,3407.6,14.12484414]
[1735647905596,63.90612446,3407.7,3407.6,14.12484414]
[1735647905892,63.90612446,3407.7,3407.6,15.89184414]
[1735647906034,63.90612446,3407.7,3407.6,14.12484414]
[1735647907057,63.90612446,3407.7,3407.6,11.64123]
[1735647907262,63.90612446,3407.7,3407.6,12.52854414]
[1735647907446,67.23612446,3407.7,3407.6,12.52854414]
[1735647907829,67.23612446,3407.7,3407.6,11.28673707]
[1735647908157,67.23612446,3407.7,3407.6,17.85979257]
[1735647908335,61.79107678,3407.7,3407.6,17.85979257]
[1735647909277,58.52400339,3407.7,3407.6,17.85979257]
[1735647909577,58.52400339,3407.7,3407.6,19.10159964]
[1735647909978,61.85400339,3407.7,3407.6,19.10159964]
[1735647910342,61.85400339,3407.7,3407.6,16.6179855]
[1735647910543,61.85400339,3407.7,3407.6,16.89510932]
[1735647911294,61.85400339,3407.7,3407.6,18.13691639]
[1735647911489,61.85400339,3407.7,3407.6,16.89510932]
[1735647911655,61.85400339,3407.7,3407.6,20.74673855]
[1735647912197,61.85400339,3407.7,3407.6,21.98854562]
[1735647912376,65.18400339,3407.7,3407.6,20.74673855]
[1735647912578,65.18400339,3407.7,3407.6,21.98854562]
[1735647913080,65.18400339,3407.7,3407.6,25.8168265]
[1735647913286,60.82817222,3407.7,3407.6,25.8168265]
[1735647914774,64.15817222,3407.7,3407.6,25.8168265]
[1735647915365,64.15817222,3407.7,3407.6,16.05421064]
[1735647915699,58.71353199,3407.7,3407.6,16.05421064]
[1735647915907,57.06001194,3407.7,3407.6,16.05421064]
[1735647916706,57.06001194,3407.7,3407.6,18.28619152]
[1735647916861,57.06001194,3407.7,3407.6,20.05319152]
[1735647917198,57.06001194,3407.7,3407.6,15.80257738]
[1735647917370,60.39001194,3407.7,3407.6,18.28619152]
[1735647918162,60.39001194,3407.7,3407.6,16.05421064]
[1735647919419,60.39001194,3407.7,3407.6,22.13139264]
[1735647919708,59.31820194,3407.7,3407.6,23.89839264]
[1735647920006,48.7335669,3407.7,3407.6,23.89839264]
[1735647920179,36.18275438,3407.7,3407.6,20.33807264]
[1735647920366,26.16089627,3407.7,3407.6,21.33099665]
[1735647920573,16.01522867,3407.7,3407.6,26.33099665]
[1735647920768,10.17811578,3407.7,3407.6,26.33099665]
[1735647921004,7.06960578,3407.7,3407.6,62.50371948]
[1735647921209,7.06960578,3407.7,3407.6,64.98733362]
[1735647921365,0.97695314,3408.3,3408.0,1.767]
[1735647921564,0.97695314,3408.3,3408.2,12.27651414]
[1735647921793,0.97695314,3408.3,3408.2,17.27651414]
[1735647922176,4.30695314,3408.3,3408.2,17.27651414]
[1735647922383,3.14e-06,3408.3,3408.2,17.61593199]
[1735647923070,3.14e-06,3408.3,3408.2,7.9341]
[1735647923264,3.14e-06,3408.3,3408.2,11.68909825]
[1735647923504,1.50933707,3408.5,3408.3,3.0]
[1735647923708,1.50933707,3408.5,3408.4,8.0]
[1735647923915,1.50933707,3408.5,3408.4,11.48392]
[1735647924282,1.50933707,3408.5,3408.4,8.55]
[1735647924672,4.83933707,3408.5,3408.4,8.55]
[1735647924911,3.12611575,3408.5,3408.4,8.55]
[1735647925808,3.12611575,3408.5,3408.4,12.45711737]
[1735647925978,0.92199056,3409.5,3408.4,12.45711737]
[1735647926313,0.92199056,3409.5,3408.6,3.0]
[1735647926518,3.74502255,3409.5,3408.4,4.45711737]
[1735647926699,0.37450226,3409.4,3408.4,4.45711737]
[1735647927101,2.93327,3409.2,3408.4,4.45711737]
[1735647927308,3.70450226,3409.4,3408.4,4.45711737]
[1735647928022,1.5006,3409.3,3409.1,1.83530356]
[1735647929219,1.5006,3409.3,3409.2,5.0]
[1735647929383,2.68892048,3409.3,3409.2,7.84640391]
[1735647929582,6.01892048,3409.3,3409.2,7.84640391]
[1735647929783,8.95207048,3409.3,3409.2,7.84640391]
[1735647930523,8.95207048,3409.3,3409.2,9.36305443]
[1735647932033,12.28207048,3409.3,3409.2,9.36305443]
[1735647934362,15.61207048,3409.3,3409.2,9.36305443]
[1735647934858,15.61207048,3409.3,3409.2,4.36305443]
[1735647936125,4.54083,3409.2,3409.1,5.85e-06]
[1735647936457,2.93341,3409.0,3408.9,3.05883927]
[1735647936884,6.26341,3409.0,3408.9,3.05883927]
[1735647937077,3.33,3409.0,3408.9,3.05883927]
[1735647937359,4.9376,3409.0,3408.9,3.05883927]
[1735647937573,4.9376,3409.0,3408.9,8.05883927]
[1735647937774,7.12482325,3409.0,3408.9,7.07882927]
[1735647937938,7.12482325,3409.0,3408.9,4.01999]
[1735647938139,7.12482325,3409.0,3408.7,5.0]
[1735647938340,1.6076,3408.9,3408.7,3.59468]
[1735647938605,1.6076,3408.9,3408.7,3.34878]
[1735647938763,1.6076,3408.9,3408.6,3.05883927]
[1735647939104,1.6076,3408.9,3408.7,3.05883927]
[1735647939234,5.55823091,3408.9,3408.7,3.05883927]
[1735647939438,6.88414091,3408.9,3408.8,2.786]
[1735647939874,2.93366,3408.7,3408.4,5.59997363]
[1735647940085,7.36447199,3408.5,3408.4,1.60007363]
[1735647940281,7.36447199,3408.5,3408.3,1.60007363]
[1735647940282,7.54152,3408.4,3408.3,1.60007363]
[1735647940482,10.36455199,3408.4,3408.3,1.60007363]
[1735647941283,10.36455199,3408.4,3408.3,0.13306363]
[1735647941651,13.69455199,3408.4,3408.3,0.13306363]
[1735647941949,15.51378152,3408.4,3408.3,0.13306363]
[1735647942150,2.93444,3407.8,3407.7,1.22522079]
[1735647942347,4.54204,3407.8,3407.7,1.22522079]
[1735647942887,4.54204,3407.8,3407.7,4.01523079]
[1735647943063,4.54204,3407.8,3407.7,2.79001]
[1735647943265,4.54204,3407.8,3407.6,2.98913]
[1735647943474,2.93453,3407.7,3407.6,2.98913]
[1735647944089,6.26453,3407.7,3407.6,2.7458]
[1735647944389,10.16821899,3407.7,3407.6,2.7458]
[1735647944591,1.6076,3407.6,3407.2,1.22522079]
[1735647944883,2.93481,3407.4,3407.2,1.22522079]
[1735647945089,1.6076,3407.6,3407.3,5.0]
[1735647945274,1.6076,3407.6,3407.2,1.22522079]
[1735647945587,1.6076,3407.6,3407.0,1.22522079]
[1735647946088,1.6076,3407.6,3407.1,5.0]
[1735647946089,2.93476,3407.5,3407.1,5.0]
[1735647946690,6.26476,3407.5,3407.1,5.0]
[1735647948094,6.26476,3407.5,3407.2,1.5166539]
[1735647948278,6.26476,3407.5,3407.3,5.0]
[1735647949670,6.26476,3407.5,3407.3,3.643218]
[1735647949853,9.59476,3407.5,3407.0,3.643218]
[1735647951098,1.6076,3407.4,3407.0,3.26131]
[1735647951301,1.6076,3407.2,3407.1,5.0]
[1735647951606,4.54256,3407.2,3407.1,3.69859]
[1735647951772,4.54256,3407.2,3407.0,4.33809]
[1735647952104,4.54256,3407.2,3407.1,3.38504]
[1735647952271,3.33,3407.2,3407.0,3.99992]
[1735647952474,3.33,3407.2,3407.0,4.87098634]
[1735647952679,3.33,3407.2,3407.1,5.0]
[1735647953608,3.33,3407.2,3406.9,5.0]
[1735647954202,3.33,3407.2,3406.9,6.22522079]
[1735647954405,3.33,3407.2,3407.0,5.0]
[1735647954566,6.66,3407.2,3407.0,5.0]
[1735647955724,6.66,3407.2,3406.9,5.0]
[1735647957004,9.99,3407.2,3406.9,6.17310969]
[1735647957201,9.99,3407.2,3407.0,6.6506]
[1735647957420,9.99,3407.2,3407.1,5.0]
[1735647958321,9.99,3407.2,3407.1,4.24329]
[1735647958618,11.5976,3407.2,3407.1,2.62807]
[1735647958803,11.5976,3407.2,3407.1,2.64081]
[1735647959394,14.9276,3407.2,3406.9,2.87416]
[1735647960609,14.9276,3407.2,3407.0,2.1858]
[1735647960806,14.9276,3407.2,3406.9,2.49879]
[1735647961012,14.9276,3407.2,3406.7,5.0]
[1735647961323,14.9276,3407.2,3406.7,1.61795106]
[1735647961504,14.9276,3407.2,3406.8,5.0]
[1735647961818,18.2576,3407.2,3406.8,5.0]
[1735647962021,16.65,3407.2,3407.1,5.93504]
[1735647962221,16.65,3407.2,3407.1,12.58564]
[1735647962412,16.65,3407.2,3407.1,14.02652821]